fUSD/lending_fUSD_20250616
["ID","MTS","AMOUNT","RATE_DAILY","PERIOD"]
[366197680,1750113041856,-490.0,0.00016078,2]
[366197681,1750113041866,-490.0,0.00016078,2]
[366197682,1750113041875,-490.0,0.00016078,2]
[366197683,1750113041885,-490.0,0.00016078,2]
[366197684,1750113041895,-490.0,0.00016078,2]
[366197685,1750113041905,-490.0,0.00016078,2]
[366197686,1750113041914,-490.0,0.00016078,2]
[366197687,1750113041925,-490.0,0.00016078,2]
[366197688,1750113041934,-490.0,0.00016078,2]
[366197689,1750113041944,-490.0,0.00016078,2]
[366197690,1750113041954,-559.25,0.00016078,2]
[366197691,1750113041963,-490.0,0.00016078,2]
[366197692,1750113041973,-490.0,0.00016078,2]
[366197693,1750113041983,-490.0,0.00016078,2]
[366197694,1750113041992,-490.0,0.00016078,2]
[366197695,1750113042002,-490.0,0.00016078,2]
[366197696,1750113042011,-490.0,0.00016078,2]
[366197697,1750113042021,-5081.8925005,0.0001608,2]
[366197698,1750113042031,-490.0,0.00016083,2]
[366197699,1750113042040,-490.0,0.00016083,2]
[366197700,1750113042054,-5614.23,0.00016083,2]
[366197701,1750113042064,-561.83,0.00016083,2]
[366197702,1750113042073,-490.0,0.00016083,2]
[366197703,1750113042082,-490.0,0.00016083,2]
[366197704,1750113042091,-490.0,0.00016083,2]
[366197705,1750113042101,-987.33,0.00016083,2]
[366197706,1750113042110,-1707.14,0.00016083,2]
[366197707,1750113042119,-2221.41,0.00016083,2]
[366197708,1750113042130,-490.0,0.00016083,2]
[366197709,1750113042139,-490.0,0.00016083,2]
[366197710,1750113042148,-2088.67,0.00016083,2]
[366197711,1750113042158,-490.0,0.00016083,2]
[366197712,1750113042168,-1000.0,0.00016083,2]
[366197713,1750113042178,-490.0,0.00016083,2]
[366197714,1750113042189,-490.0,0.00016083,2]
[366197715,1750113042199,-490.0,0.00016083,2]
[366197716,1750113042211,-490.0,0.00016083,2]
[366197717,1750113042222,-490.0,0.00016083,2]
[366197718,1750113042232,-490.0,0.00016083,2]
[366197719,1750113042243,-343.55629342,0.00016083,2]
[366197720,1750113042258,-490.0,0.00016083,2]
[366197721,1750113042267,-1523.0,0.00016083,2]
[366197722,1750113042277,-5034.41,0.00016083,2]
[366197723,1750113042289,-861.01,0.00016083,2]
[366197724,1750113042299,-1230.04,0.00016083,2]
[366197725,1750113042310,-490.0,0.00016083,2]
[366197726,1750113042322,-602.5,0.00016083,2]
[366197727,1750113042332,-490.0,0.00016083,2]
[366197728,1750113042342,-490.0,0.00016083,2]
[366197729,1750113042352,-490.35,0.00016083,2]
[366197730,1750113042362,-1717.26,0.00016083,2]
[366197731,1750113042373,-490.0,0.00016083,2]
[366197732,1750113042382,-490.0,0.00016083,2]
[366197734,1750113042392,-1928.32,0.00016083,2]
[366197735,1750113042401,-772.18,0.00016083,2]
[366197736,1750113042410,-490.0,0.00016083,2]
[366197737,1750113042419,-490.0,0.00016083,2]
[366197738,1750113042429,-490.0,0.00016083,2]
[366197739,1750113042438,-490.0,0.00016083,2]
[366197740,1750113042447,-490.0,0.00016083,2]
[366197741,1750113042456,-490.0,0.00016083,2]
[366197742,1750113042466,-490.0,0.00016083,2]
[366197743,1750113042476,-490.0,0.00016083,2]
[366197744,1750113042487,-490.0,0.00016083,2]
[366197745,1750113042497,-490.0,0.00016083,2]
[366197747,1750113042508,-490.0,0.00016083,2]
[366197748,1750113042519,-5449.9,0.00016083,2]
[366197749,1750113042529,-490.0,0.00016083,2]
[366197750,1750113042539,-1249.31,0.00016083,2]
[366197751,1750113042550,-490.0,0.00016083,2]
[366197752,1750113042559,-490.0,0.00016083,2]
[366197753,1750113042568,-972.46,0.00016083,2]
[366197754,1750113042578,-490.0,0.00016083,2]
[366197755,1750113042587,-490.0,0.00016083,2]
[366197756,1750113042598,-490.0,0.00016083,2]
[366197757,1750113042609,-490.0,0.00016083,2]
[366197758,1750113042619,-490.0,0.00016083,2]
[366197759,1750113042629,-1603.5,0.00016083,2]
[366197760,1750113042639,-541.83,0.00016084,2]
[366197761,1750113042649,-639.39,0.00016084,2]
[366197762,1750113042659,-490.0,0.00016084,2]
[366197763,1750113042668,-587.35,0.00016084,2]
[366197764,1750113042677,-490.0,0.00016084,2]
[366197765,1750113042686,-861.69,0.00016084,2]
[366197766,1750113042696,-490.0,0.00016099,2]
[366197767,1750113042706,-490.0,0.00016099,2]
[366197768,1750113042716,-490.0,0.00016099,2]
[366197769,1750113042726,-490.0,0.00016099,2]
[366197770,1750113042736,-490.0,0.00016099,2]
[366197771,1750113042746,-490.0,0.00016099,2]
[366197772,1750113042756,-490.0,0.00016099,2]
[366197773,1750113042768,-615.43629054,0.00016099,2]
[366197774,1750113042778,-490.0,0.00016099,2]
[366197775,1750113042788,-490.0,0.00016099,2]
[366197776,1750113042799,-490.0,0.00016099,2]
[366197777,1750113042808,-490.0,0.00016099,2]
[366197778,1750113042817,-490.0,0.00016099,2]
[366197779,1750113042827,-490.0,0.00016099,2]
[366197780,1750113042837,-490.0,0.00016099,2]
[366197781,1750113042847,-490.0,0.00016099,2]
[366197782,1750113042856,-490.0,0.00016099,2]
[366197783,1750113042866,-490.0,0.00016099,2]
[366197784,1750113042876,-490.0,0.00016099,2]
[366197785,1750113042886,-490.0,0.00016099,2]
[366197786,1750113042896,-490.0,0.00016099,2]
[366197788,1750113042906,-490.0,0.00016099,2]
[366197789,1750113042916,-490.0,0.00016099,2]
[366197790,1750113042925,-490.0,0.00016099,2]
[366197791,1750113042935,-490.0,0.00016099,2]
[366197792,1750113042944,-490.0,0.00016099,2]
[366197793,1750113042955,-545.96980815,0.00016099,2]
[366197794,1750113042965,-490.0,0.00016099,2]
[366197795,1750113042975,-490.0,0.00016099,2]
[366197796,1750113042986,-490.0,0.00016099,2]
[366197797,1750113042996,-490.0,0.00016099,2]
[366197798,1750113043006,-490.0,0.00016099,2]
[366197799,1750113043017,-490.0,0.00016099,2]
[366197800,1750113043027,-490.0,0.00016099,2]
[366197801,1750113043038,-490.0,0.00016099,2]
[366197802,1750113043048,-490.0,0.00016099,2]
[366197803,1750113043058,-490.0,0.00016099,2]
[366197804,1750113043069,-490.0,0.00016099,2]
[366197806,1750113043078,-490.0,0.00016099,2]
[366197808,1750113043088,-490.0,0.00016099,2]
[366197809,1750113043099,-490.0,0.00016099,2]
[366197810,1750113043108,-389.84441937,0.00016099,2]
[366197811,1750113043118,-490.0,0.00016099,2]
[366197813,1750113043127,-490.0,0.00016099,2]
[366197815,1750113043137,-490.0,0.00016099,2]
[366197817,1750113043146,-490.0,0.00016099,2]
[366197818,1750113043156,-1000.0,0.000161,5]
[366197820,1750113043166,-1054.05340274,0.000161,2]
[366197822,1750113043175,-1054.05340248,0.000161,2]
[366197825,1750113043185,-1054.05340248,0.000161,2]
[366197828,1750113043195,-1054.05340248,0.000161,2]
[366197831,1750113043205,-1054.05340248,0.000161,2]
[366197833,1750113043215,-1054.05340248,0.000161,2]
[366197835,1750113043226,-4072.519,0.00016106,2]
[366197837,1750113043237,-1054.05340248,0.00016107,2]
[366197839,1750113043248,-833.8156298,0.00016108,2]
[366197840,1750113043259,-500.0,0.00016109,2]
[366197841,1750113043269,-150.0,0.00016136,2]
[366197842,1750113043279,-252.9818085,0.00016136,2]
[366197843,1750113043288,-150.0,0.00016136,2]
[366197844,1750113043298,-150.0,0.00016136,2]
[366197845,1750113043307,-150.0,0.00016136,2]
[366197846,1750113043316,-150.0,0.00016136,2]
[366197847,1750113043326,-150.0,0.00016136,2]
[366197848,1750113043336,-150.0,0.00016136,2]
[366197849,1750113043347,-150.0,0.00016136,2]
[366197850,1750113043358,-150.0,0.00016136,2]
[366197851,1750113043372,-150.0,0.00016136,2]
[366197852,1750113043382,-152.23020556,0.00016136,2]
[366197853,1750113043392,-163.94,0.00016137,2]
[366197854,1750113043401,-1054.05340248,0.00016141,2]
[366197855,1750113043411,-162.8953335,0.00016142,2]
[366197856,1750113043421,-2000.0,0.00016153,2]
[366197857,1750113043432,-500.0,0.00016153,2]
[366197858,1750113043442,-200.0,0.00016153,2]
[366197859,1750113043451,-156.11569964,0.00016162,2]
[366197860,1750113043461,-1826.0,0.00016163,2]
[366197861,1750113043471,-150.0,0.00016163,2]
[366197862,1750113043480,-150.0,0.00016163,2]
[366197863,1750113043489,-150.0,0.00016163,2]
[366197864,1750113043499,-500.0,0.00016164,2]
[366197865,1750113043508,-1054.05340248,0.00016176,2]
[366197866,1750113043517,-5081.8925005,0.00016183,2]
[366197867,1750113043527,-200.0,0.00016191,2]
[366197868,1750113043536,-200.0,0.00016191,2]
[366197869,1750113043547,-150.0,0.00016191,2]
[366197870,1750113043556,-500.0,0.00016195,2]
[366197871,1750113043566,-797.51,0.000162,2]
[366197872,1750113043576,-461.62,0.000162,2]
[366197873,1750113043585,-461.62,0.000162,2]
[366197874,1750113043595,-1300.0,0.000162,5]
[366197875,1750113043604,-1054.05340248,0.0001621,2]
[366197876,1750113043614,-150.0,0.00016218,2]
[366197877,1750113043623,-255.0,0.0001622,2]
[366197878,1750113043633,-162.8953335,0.00016226,2]
[366197879,1750113043642,-490.0,0.00016242,2]
[366197880,1750113043652,-567.63,0.00016242,2]
[366197881,1750113043882,-490.0,0.00016242,2]
[366197882,1750113043892,-490.0,0.00016242,2]
[366197883,1750113043903,-490.0,0.00016242,2]
[366197884,1750113043912,-530.67,0.00016242,2]
[366197885,1750113043922,-490.0,0.00016242,2]
[366197886,1750113043932,-490.0,0.00016242,2]
[366197887,1750113043942,-490.0,0.00016242,2]
[366197888,1750113043952,-490.0,0.00016242,2]
[366197889,1750113043962,-490.0,0.00016242,2]
[366197890,1750113043971,-490.0,0.00016242,2]
[366197891,1750113043981,-490.0,0.00016242,2]
[366197892,1750113043990,-490.0,0.00016242,2]
[366197893,1750113044000,-167.54700814,0.00016242,2]
[366197894,1750113044009,-490.0,0.00016242,2]
[366197895,1750113044019,-672.07,0.00016242,2]
[366197896,1750113044029,-490.0,0.00016242,2]
[366197897,1750113044038,-523.68,0.00016242,2]
[366197898,1750113044049,-490.0,0.00016242,2]
[366197899,1750113044059,-490.0,0.00016242,2]
[366197900,1750113044068,-490.0,0.00016242,2]
[366197901,1750113044078,-490.0,0.00016242,2]
[366197902,1750113044088,-490.0,0.00016242,2]
[366197903,1750113044098,-490.0,0.00016242,2]
[366197904,1750113044108,-490.0,0.00016242,2]
[366197905,1750113044118,-490.0,0.00016242,2]
[366197906,1750113044127,-490.0,0.00016242,2]
[366197907,1750113044137,-490.0,0.00016242,2]
[366197908,1750113044147,-490.0,0.00016242,2]
[366197909,1750113044157,-490.0,0.00016242,2]
[366197910,1750113044168,-490.0,0.00016242,2]
[366197911,1750113044178,-490.0,0.00016242,2]
[366197912,1750113044188,-490.0,0.00016242,2]
[366197913,1750113044198,-490.0,0.00016242,2]
[366197914,1750113044207,-490.0,0.00016242,2]
[366197915,1750113044217,-490.0,0.00016242,2]
[366197916,1750113044228,-490.0,0.00016242,2]
[366197917,1750113044238,-490.0,0.00016242,2]
[366197918,1750113044250,-490.0,0.00016242,2]
[366197919,1750113044261,-544.77,0.00016242,2]
[366197920,1750113044270,-490.0,0.00016242,2]
[366197921,1750113044280,-490.0,0.00016242,2]
[366197922,1750113044291,-490.0,0.00016242,2]
[366197923,1750113044302,-490.0,0.00016242,2]
[366197924,1750113044312,-490.0,0.00016242,2]
[366197925,1750113044322,-490.0,0.00016242,2]
[366197926,1750113044334,-490.0,0.00016242,2]
[366197927,1750113044345,-490.0,0.00016242,2]
[366197928,1750113044355,-559.25,0.00016242,2]
[366197929,1750113044364,-490.0,0.00016242,2]
[366197930,1750113044374,-490.0,0.00016242,2]
[366197931,1750113044384,-490.0,0.00016242,2]
[366197932,1750113044395,-490.0,0.00016242,2]
[366197933,1750113044406,-490.0,0.00016242,2]
[366197934,1750113044416,-490.0,0.00016242,2]
[366197935,1750113044426,-490.0,0.00016242,2]
[366197936,1750113044436,-490.0,0.00016242,2]
[366197937,1750113044447,-490.0,0.00016242,2]
[366197938,1750113044456,-490.0,0.00016242,2]
[366197939,1750113044467,-490.0,0.00016242,2]
[366197940,1750113044478,-551.33,0.00016242,2]
[366197941,1750113044488,-490.0,0.00016242,2]
[366197942,1750113044497,-490.0,0.00016242,2]
[366197943,1750113044507,-490.0,0.00016242,2]
[366197944,1750113044516,-490.0,0.00016242,2]
[366197945,1750113044527,-490.0,0.00016242,2]
[366197946,1750113044537,-520.16719172,0.00016242,2]
[366197947,1750113044547,-490.0,0.00016242,2]
[366197948,1750113044557,-490.0,0.00016242,2]
[366197949,1750113044567,-550.85,0.00016242,2]
[366197950,1750113044577,-490.0,0.00016242,2]
[366197951,1750113044587,-490.0,0.00016242,2]
[366197952,1750113044597,-490.0,0.00016242,2]
[366197953,1750113044607,-490.0,0.00016242,2]
[366197954,1750113044616,-648.27,0.00016242,2]
[366197955,1750113044626,-490.0,0.00016242,2]
[366197956,1750113044636,-490.0,0.00016242,2]
[366197957,1750113044646,-490.0,0.00016242,2]
[366197958,1750113044656,-490.0,0.00016242,2]
[366197959,1750113044666,-490.0,0.00016242,2]
[366197960,1750113044676,-490.0,0.00016242,2]
[366197961,1750113044686,-826.94,0.00016242,2]
[366197962,1750113044697,-490.0,0.00016242,2]
[366197963,1750113044706,-568.2,0.00016242,2]
[366197964,1750113044716,-411.66507046,0.00016242,2]
[366197965,1750113044726,-809.12,0.00016242,2]
[366197966,1750113044735,-490.0,0.00016242,2]
[366197967,1750113044745,-2346.69,0.00016242,2]
[366197968,1750113044755,-490.0,0.00016242,2]
[366197969,1750113044764,-939.07,0.00016242,2]
[366197970,1750113044774,-683.97,0.00016242,2]
[366197971,1750113044784,-490.0,0.00016242,2]
[366197972,1750113044794,-1645.62,0.00016242,2]
[366197973,1750113044805,-490.0,0.00016242,2]
[366197974,1750113044815,-490.0,0.00016242,2]
[366197975,1750113044825,-490.0,0.00016242,2]
[366197976,1750113044836,-490.0,0.00016242,2]
[366197977,1750113044847,-490.0,0.00016242,2]
[366197978,1750113044857,-490.0,0.00016242,2]
[366197979,1750113044867,-739.42,0.00016242,2]
[366197980,1750113044877,-780.34,0.00016242,2]
[366197981,1750113044887,-691.72,0.00016242,2]
[366197982,1750113044896,-490.0,0.00016242,2]
[366197983,1750113044907,-490.0,0.00016242,2]
[366197984,1750113044917,-592.03,0.00016242,2]
[366197985,1750113044928,-486.39782967,0.00016242,2]
[366197986,1750113044938,-930.06,0.00016242,2]
[366197987,1750113044948,-490.0,0.00016242,2]
[366197988,1750113044957,-732.48,0.00016242,2]
[366197989,1750113044968,-490.0,0.00016242,2]
[366197990,1750113044978,-490.0,0.00016242,2]
[366197991,1750113044987,-4757.66,0.00016242,2]
[366197992,1750113044997,-1026.15,0.00016242,2]
[366197993,1750113045007,-490.0,0.00016242,2]
[366197994,1750113045016,-1564.53,0.00016242,2]
[366197995,1750113045026,-1093.03,0.00016242,2]
[366197996,1750113045036,-587.09706825,0.00016242,2]
[366197997,1750113045045,-490.0,0.00016242,2]
[366197998,1750113045056,-527.06,0.00016242,2]
[366197999,1750113045066,-585.03,0.00016242,2]
[366198000,1750113045075,-1339.75,0.00016242,2]
[366198001,1750113045085,-490.0,0.00016242,2]
[366198002,1750113045095,-794.94,0.00016242,2]
[366198003,1750113045104,-490.0,0.00016242,2]
[366198004,1750113045114,-3198.3,0.00016242,2]
[366198005,1750113045123,-632.24,0.00016242,2]
[366198006,1750113045133,-1212.46,0.00016242,2]
[366198007,1750113045142,-490.0,0.00016242,2]
[366198008,1750113045152,-804.38,0.00016242,2]
[366198009,1750113045162,-774.63,0.00016242,2]
[366198010,1750113045171,-490.0,0.00016242,2]
[366198011,1750113045180,-490.0,0.00016242,2]
[366198012,1750113045190,-574.36,0.00016242,2]
[366198013,1750113045200,-490.0,0.00016242,2]
[366198014,1750113045209,-490.0,0.00016242,2]
[366198015,1750113045219,-600.02,0.00016242,2]
[366198016,1750113045228,-490.0,0.00016242,2]
[366198017,1750113045238,-538.28,0.00016242,2]
[366198018,1750113045249,-490.0,0.00016242,2]
[366198019,1750113045259,-656.39,0.00016242,2]
[366198020,1750113045268,-490.0,0.00016242,2]
[366198021,1750113045278,-750.92,0.00016242,2]
[366198022,1750113045288,-1038.57,0.00016242,2]
[366198023,1750113045297,-490.0,0.00016242,2]
[366198024,1750113045306,-599.95,0.00016242,2]
[366198025,1750113045316,-1048.41,0.00016242,2]
[366198026,1750113045325,-496.57,0.00016242,2]
[366198027,1750113045335,-490.0,0.00016242,2]
[366198028,1750113045345,-513.67,0.00016242,2]
[366198029,1750113045355,-1641.08,0.00016242,2]
[366198030,1750113045364,-490.0,0.00016242,2]
[366198031,1750113045374,-490.0,0.00016242,2]
[366198032,1750113045384,-913.97,0.00016242,2]
[366198033,1750113045395,-490.0,0.00016242,2]
[366198034,1750113045404,-579.53,0.00016242,2]
[366198035,1750113045413,-490.0,0.00016242,2]
[366198036,1750113045423,-500.61,0.00016242,2]
[366198037,1750113045433,-490.0,0.00016242,2]
[366198038,1750113045442,-490.0,0.00016242,2]
[366198039,1750113045452,-2115.51,0.00016242,2]
[366198040,1750113045461,-490.0,0.00016242,2]
[366198041,1750113045471,-574.96327851,0.00016242,2]
[366198042,1750113045480,-490.0,0.00016242,2]
[366198043,1750113045490,-490.0,0.00016242,2]
[366198044,1750113045500,-923.75,0.00016242,2]
[366198045,1750113045510,-1058.0,0.00016243,2]
[366198046,1750113045520,-1054.05340248,0.00016245,2]
[366198047,1750113045530,-150.0,0.00016246,2]
[366198048,1750113045539,-490.0,0.00016248,2]
[366198049,1750113045550,-5614.23,0.00016248,2]
[366198050,1750113045560,-561.83,0.00016248,2]
[366198051,1750113045570,-490.0,0.00016248,2]
[366198052,1750113045581,-490.0,0.00016248,2]
[366198053,1750113045590,-450.22679822,0.00016248,2]
[366198054,1750113045600,-987.33,0.00016248,2]
[366198056,1750113045609,-1707.14,0.00016248,2]
[366198057,1750113045619,-500.0,0.00016248,2]
[366198058,1750113045629,-2221.41,0.00016248,2]
[366198059,1750113045639,-490.0,0.00016248,2]
[366198060,1750113045649,-490.0,0.00016248,2]
[366198061,1750113045660,-2088.67,0.00016248,2]
[366198062,1750113045669,-490.0,0.00016248,2]
[366198063,1750113045679,-1000.0,0.00016248,2]
[366198064,1750113045690,-490.0,0.00016248,2]
[366198065,1750113045700,-490.0,0.00016248,2]
[366198066,1750113045710,-490.0,0.00016248,2]
[366198067,1750113045719,-525.33817028,0.00016248,2]
[366198068,1750113045728,-490.0,0.00016248,2]
[366198069,1750113045738,-490.0,0.00016248,2]
[366198070,1750113045748,-490.0,0.00016248,2]
[366198071,1750113045760,-5034.41,0.00016248,2]
[366198072,1750113045771,-861.01,0.00016248,2]
[366198073,1750113045780,-1230.04,0.00016248,2]
[366198074,1750113045790,-490.0,0.00016248,2]
[366198075,1750113045799,-602.5,0.00016248,2]
[366198076,1750113045809,-490.0,0.00016248,2]
[366198077,1750113045819,-490.0,0.00016248,2]
[366198078,1750113045829,-490.35,0.00016248,2]
[366198079,1750113045839,-1717.26,0.00016248,2]
[366198080,1750113045848,-490.0,0.00016248,2]
[366198081,1750113045859,-490.0,0.00016248,2]
[366198082,1750113046081,-1928.32,0.00016248,2]
[366198083,1750113046092,-772.18,0.00016248,2]
[366198084,1750113046102,-490.0,0.00016248,2]
[366198086,1750113046112,-490.0,0.00016248,2]
[366198088,1750113046121,-490.0,0.00016248,2]
[366198090,1750113046130,-490.0,0.00016248,2]
[366198092,1750113046139,-490.0,0.00016248,2]
[366198094,1750113046149,-490.0,0.00016248,2]
[366198096,1750113046159,-490.0,0.00016248,2]
[366198098,1750113046168,-490.0,0.00016248,2]
[366198100,1750113046177,-490.0,0.00016248,2]
[366198101,1750113046186,-490.0,0.00016248,2]
[366198102,1750113046196,-490.0,0.00016248,2]
[366198103,1750113046206,-5449.9,0.00016248,2]
[366198104,1750113046215,-490.0,0.00016248,2]
[366198106,1750113046224,-1249.31,0.00016248,2]
[366198108,1750113046234,-490.0,0.00016248,2]
[366198110,1750113046244,-490.0,0.00016248,2]
[366198112,1750113046256,-972.46,0.00016248,2]
[366198114,1750113046265,-490.0,0.00016248,2]
[366198115,1750113046275,-490.0,0.00016248,2]
[366198116,1750113046285,-490.0,0.00016248,2]
[366198117,1750113046295,-490.0,0.00016248,2]
[366198118,1750113046306,-490.0,0.00016248,2]
[366198119,1750113046315,-1603.5,0.00016248,2]
[366198120,1750113046327,-541.83,0.00016249,2]
[366198121,1750113046338,-639.39,0.00016249,2]
[366198122,1750113046348,-490.0,0.00016249,2]
[366198123,1750113046359,-587.35,0.00016249,2]
[366198124,1750113046368,-490.0,0.00016249,2]
[366198125,1750113046378,-861.69,0.00016249,2]
[366198126,1750113046388,-156.11569964,0.00016254,2]
[366198127,1750113046400,-163.27480276,0.00016264,2]
[366198128,1750113046410,-490.0,0.00016264,2]
[366198129,1750113046420,-219.07337502,0.00016264,2]
[366198130,1750113046429,-308.81,0.00016264,2]
[366198131,1750113046439,-490.0,0.00016264,2]
[366198132,1750113046451,-490.0,0.00016264,2]
[366198133,1750113046460,-490.0,0.00016264,2]
[366198134,1750113046470,-490.0,0.00016264,2]
[366198135,1750113046480,-490.0,0.00016264,2]
[366198136,1750113046491,-490.0,0.00016264,2]
[366198137,1750113046502,-490.0,0.00016264,2]
[366198138,1750113046512,-490.0,0.00016264,2]
[366198139,1750113046522,-490.0,0.00016264,2]
[366198140,1750113046534,-490.0,0.00016264,2]
[366198141,1750113046543,-490.0,0.00016264,2]
[366198142,1750113046554,-359.24586323,0.00016264,2]
[366198143,1750113046563,-490.0,0.00016264,2]
[366198144,1750113046574,-490.0,0.00016264,2]
[366198145,1750113046585,-490.0,0.00016264,2]
[366198146,1750113046594,-490.0,0.00016264,2]
[366198147,1750113046603,-490.0,0.00016264,2]
[366198148,1750113046614,-200.0,0.00016273,2]
[366198149,1750113046625,-1054.05340248,0.00016279,2]
[366198150,1750113046636,-250.0,0.00016282,2]
[366198151,1750113046647,-5081.8925005,0.00016285,2]
[366198152,1750113046656,-1600.0,0.000163,5]
[366198153,1750113046665,-1546.66915506,0.0001631,2]
[366198154,1750113046675,-162.8953335,0.0001631,2]
[366198155,1750113046685,-1054.05340248,0.00016314,2]
[366198156,1750113046695,-198.21370781,0.00016327,2]
[366198157,1750113046704,-200.0,0.00016327,2]
[366198158,1750113046713,-339.16430366,0.00016327,2]
[366198159,1750113046723,-200.0,0.00016327,2]
[366198160,1750113046732,-300.0,0.00016327,2]
[366198161,1750113046742,-200.0,0.00016327,2]
[366198162,1750113046752,-156.11569964,0.00016346,2]
[366198163,1750113046763,-1054.05340248,0.00016348,2]
[366198164,1750113046772,-330.0,0.0001636,2]
[366198165,1750113046784,-1054.05340248,0.00016383,2]
[366198166,1750113046794,-5081.8925005,0.00016388,2]
[366198167,1750113046804,-1546.66915506,0.00016395,2]
[366198168,1750113046816,-162.8953335,0.00016395,2]
[366198169,1750113046826,-353.25923805,0.000164,2]
[366198170,1750113046835,-300.0,0.000164,5]
[366198171,1750113046846,-490.0,0.00016406,2]
[366198172,1750113046856,-490.0,0.00016406,2]
[366198173,1750113046866,-490.0,0.00016406,2]
[366198174,1750113046876,-490.0,0.00016406,2]
[366198175,1750113046885,-530.67,0.00016406,2]
[366198176,1750113046894,-490.0,0.00016406,2]
[366198177,1750113046904,-490.0,0.00016406,2]
[366198178,1750113046914,-490.0,0.00016406,2]
[366198179,1750113046924,-490.0,0.00016406,2]
[366198180,1750113046933,-490.0,0.00016406,2]
[366198181,1750113046943,-238.72280954,0.00016406,2]
[366198182,1750113046954,-490.0,0.00016406,2]
[366198183,1750113046965,-490.0,0.00016406,2]
[366198184,1750113046975,-490.0,0.00016406,2]
[366198185,1750113046984,-672.07,0.00016406,2]
[366198186,1750113046993,-490.0,0.00016406,2]
[366198187,1750113047003,-523.68,0.00016406,2]
[366198188,1750113047013,-380.11683643,0.00016406,2]
[366198189,1750113047022,-490.0,0.00016406,2]
[366198190,1750113047033,-490.0,0.00016406,2]
[366198191,1750113047042,-378.07303139,0.00016406,2]
[366198192,1750113047052,-490.0,0.00016406,2]
[366198193,1750113047062,-490.0,0.00016406,2]
[366198194,1750113047072,-490.0,0.00016406,2]
[366198195,1750113047082,-490.0,0.00016406,2]
[366198196,1750113047091,-490.0,0.00016406,2]
[366198197,1750113047102,-490.0,0.00016406,2]
[366198198,1750113047112,-490.0,0.00016406,2]
[366198199,1750113047122,-490.0,0.00016406,2]
[366198200,1750113047131,-490.0,0.00016406,2]
[366198201,1750113047141,-490.0,0.00016406,2]
[366198202,1750113047150,-490.0,0.00016406,2]
[366198203,1750113047159,-490.0,0.00016406,2]
[366198204,1750113047169,-571.4908331,0.00016406,2]
[366198205,1750113047179,-490.0,0.00016406,2]
[366198206,1750113047190,-490.0,0.00016406,2]
[366198207,1750113047200,-490.0,0.00016406,2]
[366198208,1750113047211,-490.0,0.00016406,2]
[366198209,1750113047221,-544.77,0.00016406,2]
[366198210,1750113047231,-490.0,0.00016406,2]
[366198211,1750113047241,-490.0,0.00016406,2]
[366198212,1750113047254,-490.0,0.00016406,2]
[366198213,1750113047264,-490.0,0.00016406,2]